[Event "Championnat d'Europe Rapide"]
[Date "2024.12.08"]
[White "Lagarde, Maxime"]
[Black "Janik, Igor"]
[WhiteElo "2600"]
[BlackElo "2515"]
[Round "9.10"]
[Result "0-1"]
[TimeControl "900+10"]

1. e4 {[%emt 00:00:05] [%clk 00:15:18]} c6 {[%clk 00:15:20]} 2. d4 {[%emt
00:00:04] [%clk 00:15:23]} d5 {[%emt 00:00:01] [%clk 00:15:29]} 3. e5 {[%emt
00:00:01] [%clk 00:15:32]} Bf5 {[%emt 00:00:06] [%clk 00:15:32]} 4. Nf3 {[%emt
00:00:02] [%clk 00:15:39]} e6 {[%emt 00:00:06] [%clk 00:15:36]} 5. Be2 {[%emt
00:00:02] [%clk 00:15:48]} Ne7 {[%emt 00:00:08] [%clk 00:15:38]} 6. c3 {[%emt
00:00:02] [%clk 00:15:56]} Nd7 {[%emt 00:00:06] [%clk 00:15:42]} 7. O-O {[%emt
00:00:09] [%clk 00:15:56]} c5 {[%emt 00:00:17] [%clk 00:15:35]} 8. dxc5 {[%emt
00:00:55] [%clk 00:15:11]} Nxc5 {[%emt 00:00:17] [%clk 00:15:28]} 9. Nd4 {[%emt
00:00:04] [%clk 00:15:17]} Bg6 {[%emt 00:00:20] [%clk 00:15:19]} 10. h4 {[%emt
00:04:23] [%clk 00:11:04]} h5 {[%emt 00:00:28] [%clk 00:15:01]} 11. Bg5 {[%emt
00:00:50] [%clk 00:10:24]} a6 {[%emt 00:00:15] [%clk 00:14:57]} 12. Nd2 {[%emt
00:00:06] [%clk 00:10:27]} Qb6 {[%emt 00:00:49] [%clk 00:14:18]} 13. c4 {[%emt
00:02:10] [%clk 00:08:27]} Qxb2 {[%emt 00:03:12] [%clk 00:11:15]} 14. Be3 {[%emt
00:00:18] [%clk 00:08:19]} Rd8 {[%emt 00:00:55] [%clk 00:10:30]} 15. Rc1 {[%emt
00:02:33] [%clk 00:05:56]} Qxa2 {[%emt 00:01:59] [%clk 00:08:42]} 16. Ra1 {[%emt
00:01:07] [%clk 00:04:59]} Qb2 {[%emt 00:00:12]} 17. Ra5 {[%clk 00:04:59]} b6
{[%emt 00:01:56] [%clk 00:07:04]} 18. Rxc5 {[%emt 00:00:02] [%clk 00:05:07]}
bxc5 {[%emt 00:00:05] [%clk 00:07:09]} 19. Qa4+ {[%emt 00:00:01] [%clk
00:05:16]} Rd7 {[%emt 00:00:13] [%clk 00:07:07]} 20. N4b3 {[%emt 00:00:24] [%clk
00:05:01]} Bc2 {[%emt 00:01:43] [%clk 00:05:34]} 21. Bxc5 {[%emt 00:01:09] [%clk
00:04:02]} Bxb3 {[%emt 00:01:23] [%clk 00:04:21]} 22. Nxb3 {[%emt 00:00:02]
[%clk 00:04:10]} Qxe2 {[%emt 00:00:19] [%clk 00:04:11]} 23. Rc1 {[%emt 00:00:41]
[%clk 00:03:40]} Qxe5 {[%emt 00:01:00] [%clk 00:03:21]} 24. Ba3 {[%emt 00:01:05]
[%clk 00:02:45]} dxc4 {[%emt 00:01:40] [%clk 00:01:52]} 25. Nc5 {[%emt 00:00:06]
[%clk 00:02:49]} Qd5 {[%clk 00:02:01]} 26. Nxd7 {[%emt 00:01:09] [%clk
00:01:50]} Qxd7 {[%emt 00:00:03] [%clk 00:02:08]} 27. Qxc4 {[%emt 00:00:18]
[%clk 00:01:42]} f6 {[%emt 00:01:31] [%clk 00:00:48]} 28. Qxa6 {[%emt 00:00:16]
[%clk 00:01:36]} Kf7 {[%emt 00:00:15] [%clk 00:00:42]} 29. Rb1 {[%emt 00:00:04]
[%clk 00:01:42]} Qd5 {[%emt 00:00:50]} 30. Rb7 {[%clk 00:01:36]} Qa2 {[%emt
00:00:13] [%clk 00:00:14]} 31. Qa7 {[%emt 00:00:19] [%clk 00:01:27]} Kg6 {[%emt
00:00:11] [%clk 00:00:13]} 32. Bxe7 {[%emt 00:00:18] [%clk 00:01:19]} Qxa7
{[%emt 00:00:01] [%clk 00:00:22]} 33. Rxa7 {[%emt 00:00:02] [%clk 00:01:27]}
Bxe7 {[%clk 00:00:31]} 34. Rxe7 {[%emt 00:00:02] [%clk 00:01:36]} e5 {[%clk
00:00:41]} 35. g3 {[%emt 00:00:06] [%clk 00:01:40]} Rg8 {[%clk 00:00:50]} 36.
Kg2 {[%emt 00:00:04] [%clk 00:01:46]} Kf5 {[%emt 00:00:02] [%clk 00:00:57]} 37.
Kf3 {[%emt 00:00:06] [%clk 00:01:51]} g6 {[%clk 00:01:07]} 38. Rb7 {[%emt
00:00:09] [%clk 00:01:51]} Rd8 {[%emt 00:00:02] [%clk 00:01:15]} 39. Rb6 {[%emt
00:00:07] [%clk 00:01:54]} Rd3+ {[%emt 00:00:05] [%clk 00:01:20]} 40. Ke2 {[%emt
00:00:21] [%clk 00:01:43]} Ra3 {[%emt 00:00:03] [%clk 00:01:27]} 41. Rc6 {[%clk
00:01:52]} Ra4 {[%emt 00:00:28] [%clk 00:01:10]} 42. Kf3 {[%emt 00:00:06] [%clk
00:01:55]} Ra3+ {[%emt 00:00:01] [%clk 00:01:18]} 43. Kg2 {[%emt 00:00:16] [%clk
00:01:50]} Ra7 {[%emt 00:00:01] [%clk 00:01:27]} 44. Rb6 {[%emt 00:00:06] [%clk
00:01:54]} Re7 {[%emt 00:00:02] [%clk 00:01:36]} 45. Kf3 {[%emt 00:00:02] [%clk
00:02:01]} Re6 {[%emt 00:00:06] [%clk 00:01:40]} 46. Rb3 {[%emt 00:00:09] [%clk
00:02:02]} Ra6 {[%emt 00:00:02] [%clk 00:01:49]} 47. Rc3 {[%emt 00:00:05] [%clk
00:02:05]} Rd6 {[%emt 00:00:16] [%clk 00:01:43]} 48. Rc4 {[%emt 00:00:38] [%clk
00:01:37]} Ke6 {[%emt 00:01:01] [%clk 00:00:53]} 49. Ra4 {[%emt 00:00:04] [%clk
00:01:43]} Rb6 {[%emt 00:00:05] [%clk 00:00:58]} 50. Ra5 {[%emt 00:00:12] [%clk
00:01:41]} Kf5 {[%emt 00:00:27] [%clk 00:00:41]} 51. Rc5 {[%emt 00:00:07] [%clk
00:01:44]} g5 {[%emt 00:00:10] [%clk 00:00:41]} 52. hxg5 {[%emt 00:00:05] [%clk
00:01:49]} Rb3+ {[%emt 00:00:31] [%clk 00:00:20]} 53. Kg2 {[%emt 00:00:05] [%clk
00:01:54]} Kxg5 {[%emt 00:00:09] [%clk 00:00:21]} 54. Rc8 {[%emt 00:00:06] [%clk
00:01:57]} Rb7 {[%emt 00:00:16] [%clk 00:00:16]} 55. Rg8+ {[%emt 00:00:07] [%clk
00:02:00]} Kf5 {[%emt 00:00:01] [%clk 00:00:25]} 56. Rh8 {[%emt 00:00:02] [%clk
00:02:08]} Kg6 {[%emt 00:00:01] [%clk 00:00:34]} 57. Rg8+ {[%emt 00:00:01] [%clk
00:02:16]} Rg7 {[%emt 00:00:01] [%clk 00:00:43]} 58. Ra8 {[%emt 00:00:02] [%clk
00:02:24]} Rh7 {[%emt 00:00:05] [%clk 00:00:49]} 59. Kh3 {[%emt 00:00:41] [%clk
00:01:53]} Kf5 {[%emt 00:00:25] [%clk 00:00:34]} 60. Rf8 {[%emt 00:00:05] [%clk
00:01:58]} Rh6 {[%emt 00:00:10] [%clk 00:00:34]} 61. Ra8 {[%emt 00:00:12] [%clk
00:01:56]} h4 {[%emt 00:00:20] [%clk 00:00:24]} 62. Ra4 {[%emt 00:01:00] [%clk
00:01:06]} hxg3+ {[%emt 00:00:12] [%clk 00:00:22]} 63. Kxg3 {[%emt 00:00:02]
[%clk 00:01:14]} Rg6+ {[%emt 00:00:04] [%clk 00:00:28]} 64. Kf3 {[%clk
00:01:22]} Rg1 {[%emt 00:00:04] [%clk 00:00:33]} 65. Rb4 {[%emt 00:00:07] [%clk
00:01:26]} Kg5 {[%emt 00:00:11] [%clk 00:00:31]} 66. Rb5 {[%emt 00:00:11] [%clk
00:01:27]} Ra1 {[%emt 00:00:13] [%clk 00:00:28]} 67. Kg3 {[%emt 00:00:21] [%clk
00:01:14]} Rg1+ {[%emt 00:00:15] [%clk 00:00:24]} 68. Kf3 {[%emt 00:00:02] [%clk
00:01:23]} Kf5 {[%emt 00:00:10] [%clk 00:00:24]} 69. Rb6 {[%emt 00:00:07] [%clk
00:01:26]} e4+ {[%emt 00:00:09] [%clk 00:00:24]} 70. Ke2 {[%clk 00:01:35]} Ra1
{[%emt 00:00:05] [%clk 00:00:29]} 71. Rb5+ {[%emt 00:01:07] [%clk 00:00:39]} Kf4
{[%emt 00:00:02] [%clk 00:00:36]} 72. Rh5 {[%emt 00:00:03] [%clk 00:00:46]} f5
{[%emt 00:00:20] [%clk 00:00:27]} 73. Rh4+ {[%emt 00:00:01] [%clk 00:00:55]} Kg5
{[%emt 00:00:06] [%clk 00:00:31]} 74. Rh8 {[%emt 00:00:03] [%clk 00:01:02]} Kg4
{[%emt 00:00:02] [%clk 00:00:39]} 75. Rg8+ {[%emt 00:00:15] [%clk 00:00:57]} Kf4
{[%emt 00:00:01] [%clk 00:00:48]} 76. Rh8 {[%clk 00:01:06]} Ra2+ {[%emt
00:00:17] [%clk 00:00:42]} 77. Kf1 {[%emt 00:00:02] [%clk 00:01:13]} Ra6 {[%emt
00:00:23] [%clk 00:00:30]} 78. Ke2 {[%emt 00:00:15] [%clk 00:01:07]} Rb6 {[%emt
00:00:08] [%clk 00:00:33]} 79. Rh7 {[%emt 00:00:03] [%clk 00:01:13]} Rb8 {[%clk
00:00:42]} 80. Rh4+ {[%emt 00:00:09] [%clk 00:01:13]} Kg5 {[%emt 00:00:06] [%clk
00:00:47]} 81. Rh7 {[%emt 00:00:02] [%clk 00:01:20]} f4 {[%emt 00:00:05] [%clk
00:00:53]} 82. Rg7+ {[%emt 00:00:12] [%clk 00:01:18]} Kf6 {[%emt 00:00:03] [%clk
00:01:00]} 83. Ra7 {[%emt 00:00:03] [%clk 00:01:25]} Rb2+ {[%emt 00:00:02] [%clk
00:01:08]} 84. Ke1 {[%emt 00:00:37] [%clk 00:00:57]} Kf5 {[%emt 00:00:12] [%clk
00:01:07]} 85. f3 {[%emt 00:00:43] [%clk 00:00:24]} e3 {[%emt 00:00:16] [%clk
00:01:01]} 86. Ra5+ {[%emt 00:00:01] [%clk 00:00:33]} Kf6 {[%emt 00:00:05] [%clk
00:01:06]} 87. Rh5 {[%emt 00:00:27] [%clk 00:00:15]} Rf2 {[%emt 00:00:06] [%clk
00:01:11]} 88. Rh3 {[%emt 00:00:05] [%clk 00:00:20]} Ke5 {[%emt 00:00:11] [%clk
00:01:10]} 89. Rh8 {[%emt 00:00:17] [%clk 00:00:13]} Rxf3 {[%emt 00:00:04] [%clk
00:01:16]} 90. Re8+ {[%emt 00:00:02] [%clk 00:00:21]} Kf6 {[%emt 00:00:03] [%clk
00:01:23]} 91. Rf8+ {[%emt 00:00:02] [%clk 00:00:29]} Ke7 {[%emt 00:00:03] [%clk
00:01:29]} 92. Rf5 {[%emt 00:00:02] [%clk 00:00:37]} Ke6 {[%emt 00:00:03] [%clk
00:01:37]} 93. Rf8 {[%emt 00:00:01] [%clk 00:00:46]} Rf2 {[%emt 00:00:02] [%clk
00:01:44]} 94. Kd1 {[%emt 00:00:08] [%clk 00:00:49]} Ke5 {[%emt 00:00:03] [%clk
00:01:50]} 0-1

[Site "Europe Echecs"]

[Event "Championnat d'Europe Rapide"]
[Date "2024.12.08"]
[White "Peyrer, Konstantin"]
[Black "Fridman, Daniel"]
[WhiteElo "2440"]
[BlackElo "2571"]
[Round "9.11"]
[Result "0-1"]
[TimeControl "900+10"]

1. Nf3 {[%emt 00:00:02] [%clk 00:15:17]} d5 {[%emt 00:00:03] [%clk 00:15:18]} 2.
g3 {[%emt 00:00:02] [%clk 00:15:25]} Nd7 {[%emt 00:00:05] [%clk 00:15:23]} 3. d4
{[%emt 00:00:02] [%clk 00:15:33]} Nb6 {[%emt 00:00:01] [%clk 00:15:32]} 4. Bg2
{[%emt 00:00:02] [%clk 00:15:41]} Bf5 {[%emt 00:00:01] [%clk 00:15:40]} 5. a4
{[%emt 00:00:06] [%clk 00:15:46]} a5 {[%emt 00:00:03] [%clk 00:15:48]} 6. Nc3
{[%emt 00:00:03] [%clk 00:15:52]} Nf6 {[%emt 00:00:14] [%clk 00:15:43]} 7. Ne5
{[%emt 00:00:03] [%clk 00:16:00]} e6 {[%emt 00:00:16] [%clk 00:15:37]} 8. O-O
{[%emt 00:00:07] [%clk 00:16:03]} Be7 {[%emt 00:00:23] [%clk 00:15:24]} 9. f3
{[%emt 00:00:08] [%clk 00:16:05]} h6 {[%emt 00:00:42] [%clk 00:14:52]} 10. e4
{[%emt 00:00:23] [%clk 00:15:52]} Bh7 {[%emt 00:00:03] [%clk 00:14:59]} 11. Be3
{[%emt 00:00:04] [%clk 00:15:57]} O-O {[%emt 00:00:33] [%clk 00:14:37]} 12. Qe2
{[%emt 00:00:27] [%clk 00:15:39]} Re8 {[%emt 00:00:14] [%clk 00:14:34]} 13. Bf2
{[%emt 00:00:46] [%clk 00:15:03]} Bb4 {[%emt 00:00:29] [%clk 00:14:15]} 14. Nd3
{[%emt 00:00:18] [%clk 00:14:54]} c6 {[%emt 00:02:01] [%clk 00:12:25]} 15. g4
{[%emt 00:03:25] [%clk 00:11:39]} Nc4 {[%emt 00:00:53] [%clk 00:11:41]} 16. e5
{[%emt 00:00:58] [%clk 00:10:51]} Nxb2 {[%emt 00:01:22] [%clk 00:10:29]} 17.
Nxb4 {[%emt 00:00:01] [%clk 00:11:00]} axb4 {[%emt 00:00:02] [%clk 00:10:36]}
18. exf6 {[%emt 00:00:02] [%clk 00:11:08]} bxc3 {[%emt 00:00:03] [%clk
00:10:43]} 19. fxg7 {[%emt 00:00:05] [%clk 00:11:14]} Qg5 {[%emt 00:00:46] [%clk
00:10:07]} 20. a5 {[%emt 00:00:50] [%clk 00:10:33]} Qd2 {[%emt 00:02:15] [%clk
00:08:03]} 21. Qe5 {[%emt 00:00:02] [%clk 00:10:42]} Nc4 {[%emt 00:00:02] [%clk
00:08:11]} 22. Qc7 {[%emt 00:00:21] [%clk 00:10:29]} Bxc2 {[%emt 00:00:35] [%clk
00:07:47]} 23. Ra2 {[%emt 00:00:27] [%clk 00:10:13]} b5 {[%emt 00:00:38] [%clk
00:07:18]} 24. g5 {[%emt 00:01:26] [%clk 00:08:58]} hxg5 {[%emt 00:00:41] [%clk
00:06:47]} 25. Be1 {[%emt 00:00:51] [%clk 00:08:18]} Qd3 {[%emt 00:00:37] [%clk
00:06:19]} 26. Qg3 {[%emt 00:00:16] [%clk 00:08:12]} b4 {[%emt 00:00:09] [%clk
00:06:19]} 27. Qh3 {[%emt 00:00:03] [%clk 00:08:20]} Kxg7 {[%emt 00:00:04] [%clk
00:06:26]} 28. Qg3 {[%emt 00:00:01] [%clk 00:08:28]} b3 {[%emt 00:00:20] [%clk
00:06:16]} 29. Ra4 {[%emt 00:00:37] [%clk 00:08:01]} b2 {[%emt 00:00:10] [%clk
00:06:17]} 30. Rxc4 {[%emt 00:00:02] [%clk 00:08:09]} dxc4 {[%emt 00:00:28]
[%clk 00:05:58]} 31. Qxg5+ {[%emt 00:00:11] [%clk 00:08:07]} Qg6 {[%emt
00:00:06] [%clk 00:06:02]} 32. Qe5+ {[%emt 00:00:03] [%clk 00:08:15]} f6 {[%emt
00:00:17] [%clk 00:05:54]} 33. Qc7+ {[%emt 00:00:02] [%clk 00:08:23]} Kh8 {[%emt
00:00:21] [%clk 00:05:43]} 34. Bxc3 {[%emt 00:00:19] [%clk 00:08:15]} Rg8 {[%emt
00:00:07] [%clk 00:05:46]} 0-1

[Site "Europe Echecs"]

[Event "Championnat d'Europe Rapide"]
[Date "2024.12.08"]
[White "Grigorov, Grigor"]
[Black "Subelj, Jan"]
[WhiteElo "2497"]
[BlackElo "2526"]
[Round "9.12"]
[Result "1/2-1/2"]
[TimeControl "900+10"]

1. d4 {[%clk 00:15:18]} Nf6 {[%emt 00:00:03] [%clk 00:15:18]} 2. Nf3 {[%emt
00:00:02] [%clk 00:15:26]} c6 {[%emt 00:00:05] [%clk 00:15:23]} 3. c4 {[%emt
00:00:11] [%clk 00:15:24]} d5 {[%emt 00:00:09] [%clk 00:15:24]} 4. e3 {[%emt
00:00:55] [%clk 00:14:40]} Bg4 {[%emt 00:00:23] [%clk 00:15:10]} 5. h3 {[%emt
00:00:11] [%clk 00:14:38]} Bh5 {[%emt 00:00:09] [%clk 00:15:11]} 6. Nc3 {[%emt
00:00:08] [%clk 00:14:41]} e6 {[%emt 00:00:12] [%clk 00:15:08]} 7. Qb3 {[%emt
00:00:44] [%clk 00:14:07]} Qb6 {[%emt 00:01:12] [%clk 00:14:06]} 8. Nh4 {[%emt
00:00:03] [%clk 00:14:13]} Be7 {[%emt 00:02:17] [%clk 00:12:00]} 9. g4 {[%emt
00:00:06] [%clk 00:14:16]} Bg6 {[%emt 00:00:03] [%clk 00:12:08]} 10. Nxg6 {[%emt
00:00:06] [%clk 00:14:20]} hxg6 {[%emt 00:00:03] [%clk 00:12:15]} 11. Bg2 {[%emt
00:01:06] [%clk 00:13:24]} g5 {[%emt 00:01:04] [%clk 00:11:21]} 12. Bd2 {[%emt
00:00:14] [%clk 00:13:20]} Nbd7 {[%emt 00:00:03] [%clk 00:11:28]} 13. O-O-O
{[%emt 00:00:13] [%clk 00:13:17]} a5 {[%emt 00:04:43] [%clk 00:06:57]} 14. Qxb6
{[%emt 00:02:27] [%clk 00:10:58]} Nxb6 {[%emt 00:00:03] [%clk 00:07:05]} 15. c5
{[%emt 00:02:18] [%clk 00:08:50]} Nbd7 {[%emt 00:00:02] [%clk 00:07:12]} 16. Na4
{[%emt 00:01:21] [%clk 00:07:40]} e5 {[%emt 00:00:17] [%clk 00:07:05]} 17. Kc2
{[%emt 00:00:11] [%clk 00:07:37]} Nh7 {[%emt 00:00:45] [%clk 00:06:31]} 18. Bc3
{[%emt 00:00:51] [%clk 00:06:55]} exd4 {[%emt 00:00:27] [%clk 00:06:15]} 19.
Bxd4 {[%emt 00:00:39] [%clk 00:06:25]} Bf6 {[%emt 00:00:28] [%clk 00:05:59]} 20.
e4 {[%emt 00:00:06] [%clk 00:06:29]} dxe4 {[%emt 00:00:02] [%clk 00:06:06]} 21.
Bxe4 {[%emt 00:00:06] [%clk 00:06:34]} Bxd4 {[%emt 00:00:19] [%clk 00:05:57]}
22. Rxd4 {[%emt 00:00:41] [%clk 00:06:03]} g6 {[%emt 00:00:02] [%clk 00:06:04]}
23. Re1 {[%emt 00:00:32] [%clk 00:05:41]} O-O-O {[%emt 00:00:20] [%clk
00:05:54]} 24. Bd3 {[%emt 00:00:34] [%clk 00:05:17]} Rhe8 {[%emt 00:00:32] [%clk
00:05:32]} 25. Rde4 {[%emt 00:00:18] [%clk 00:05:08]} Rxe4 {[%emt 00:00:28]
[%clk 00:05:15]} 26. Rxe4 {[%emt 00:00:05] [%clk 00:05:13]} Nhf6 {[%emt
00:00:01] [%clk 00:05:24]} 27. Rd4 {[%emt 00:00:51] [%clk 00:04:33]} Ne5 {[%emt
00:01:49] [%clk 00:03:45]} 28. Nb6+ {[%emt 00:00:16] [%clk 00:04:26]} Kc7 {[%emt
00:00:02] [%clk 00:03:54]} 29. Rxd8 {[%emt 00:00:13] [%clk 00:04:23]} Kxd8
{[%emt 00:00:02] [%clk 00:04:02]} 30. Nc4 {[%emt 00:00:03] [%clk 00:04:29]} Nfd7
{[%emt 00:00:45] [%clk 00:03:28]} 31. Nxe5 {[%emt 00:00:48] [%clk 00:03:51]}
Nxe5 {[%emt 00:00:02] [%clk 00:03:36]} 32. Kc3 {[%emt 00:00:19] [%clk 00:03:42]}
Ke7 {[%emt 00:00:02] [%clk 00:03:45]} 33. Be2 {[%emt 00:00:56] [%clk 00:02:55]}
Ke6 {[%emt 00:00:07] [%clk 00:03:48]} 34. Kd4 {[%emt 00:00:02] [%clk 00:03:02]}
f5 {[%emt 00:00:14] [%clk 00:03:45]} 35. b3 {[%emt 00:00:19] [%clk 00:02:53]}
Kf6 {[%emt 00:00:09] [%clk 00:03:45]} 36. a3 {[%emt 00:00:06] [%clk 00:02:57]}
Ke6 {[%emt 00:00:02] [%clk 00:03:54]} 37. b4 {[%emt 00:00:09] [%clk 00:02:58]}
axb4 {[%emt 00:00:04] [%clk 00:04:00]} 38. axb4 {[%emt 00:00:01] [%clk
00:03:07]} Kf6 {[%emt 00:00:02] [%clk 00:04:08]} 39. Bd1 {[%emt 00:00:11] [%clk
00:03:05]} Ke6 {[%emt 00:00:06] [%clk 00:04:12]} 40. Bb3+ {[%emt 00:00:06] [%clk
00:03:10]} Kf6 {[%emt 00:00:01] [%clk 00:04:21]} 41. Bd1 {[%emt 00:00:01] [%clk
00:03:19]} Ke6 {[%emt 00:00:02] [%clk 00:04:30]} 42. Bb3+ {[%emt 00:00:01] [%clk
00:03:27]} Kf6 {[%emt 00:00:01] [%clk 00:04:38]} 1/2-1/2

[Site "Europe Echecs"]